fUSD/lending_fUSD_20250110
["ID","MTS","AMOUNT","RATE_DAILY","PERIOD"]
[348440149,1736529046564,-254.60380089,9.844e-05,2]
[348440151,1736529046573,-500.0,9.844e-05,2]
[348440153,1736529046582,-500.0,9.844e-05,2]
[348440155,1736529046591,-500.0,9.844e-05,2]
[348440157,1736529046601,-1000.0,9.9e-05,2]
[348440159,1736529046610,-500.0,9.941e-05,2]
[348440161,1736529046619,-597.96,9.941e-05,2]
[348440163,1736529046628,-500.0,9.942e-05,2]
[348440165,1736529046637,-500.0,9.942e-05,2]
[348440167,1736529046647,-500.0,9.942e-05,2]
[348440169,1736529046657,-500.0,9.942e-05,2]
[348440171,1736529046666,-500.0,9.942e-05,2]
[348440173,1736529046678,-238.76295077,9.942e-05,2]
[348440175,1736529046687,-539.57,9.945e-05,2]
[348440177,1736529046696,-500.0,9.945e-05,2]
[348440179,1736529046706,-692.81,9.945e-05,2]
[348440182,1736529046715,-500.0,9.945e-05,2]
[348440184,1736529046725,-500.0,9.945e-05,2]
[348440186,1736529046734,-1219.14,9.945e-05,2]
[348440188,1736529046744,-1051.43,9.945e-05,2]
[348440190,1736529046753,-915.43,9.945e-05,2]
[348440192,1736529046763,-1773.45,9.945e-05,2]
[348440194,1736529046772,-3250.68,9.945e-05,2]
[348440196,1736529046781,-540.89,9.945e-05,2]
[348440198,1736529046790,-500.0,9.945e-05,2]
[348440200,1736529046800,-500.0,9.945e-05,2]
[348440202,1736529046808,-1025.56,9.945e-05,2]
[348440204,1736529046818,-500.0,9.945e-05,2]
[348440206,1736529046827,-500.0,9.945e-05,2]
[348440208,1736529046836,-967.39,9.945e-05,2]
[348440210,1736529046846,-635.21,9.945e-05,2]
[348440212,1736529046855,-812.79,9.945e-05,2]
[348440214,1736529046865,-550.45,9.945e-05,2]
[348440216,1736529046874,-1000.0,9.945e-05,2]
[348440218,1736529046884,-657.85,9.945e-05,2]
[348440220,1736529046893,-500.0,9.945e-05,2]
[348440221,1736529046903,-1398.58,0.0001,2]
[348440223,1736529046912,-295.12,0.0001,2]
[348440225,1736529046921,-389.30106981,0.0001,2]
[348440227,1736529046933,-389.30106978,0.0001,2]
[348440230,1736529046944,-389.30106978,0.0001,2]
[348440232,1736529046954,-389.30106978,0.0001,2]
[348440234,1736529046963,-389.30106978,0.0001,2]
[348440236,1736529046973,-266615.23918179,0.0001,2]
[348440237,1736529046982,-389.30106978,0.0001,2]
[348440239,1736529046992,-210.46368128,0.0001,2]
[348440241,1736529047001,-210.46368128,0.0001,2]
[348440244,1736529047011,-210.46368128,0.0001,2]
[348440245,1736529047020,-210.46368128,0.0001,2]
[348440247,1736529047030,-5431.30117007,0.00010005,2]
[348440250,1736529047039,-389.30106978,0.0001004,2]
[348440252,1736529047049,-10348.19123902,0.00010073,4]
[348440253,1736529047058,-869.1,0.00010104,2]
[348440255,1736529047068,-500.0,0.00010104,2]
[348440257,1736529047077,-1464.21,0.00010104,2]
[348440260,1736529047087,-582.34,0.00010104,2]
[348440263,1736529047109,-1024.71,0.00010104,2]
[348440265,1736529047119,-1511.09,0.00010104,2]
[348440267,1736529047130,-1993.58,0.00010104,2]
[348440269,1736529047140,-1204.52,0.00010104,2]
[348440271,1736529047150,-763.82,0.00010104,2]
[348440273,1736529047161,-2234.93,0.00010104,2]
[348440275,1736529047171,-701.76,0.00010104,2]
[348440278,1736529047185,-550.99,0.00010104,2]
[348440280,1736529047195,-1753.49,0.00010104,2]
[348440282,1736529047205,-566.03,0.00010104,2]
[348440284,1736529047214,-982.83,0.00010104,2]
[348440286,1736529047225,-500.0,0.00010104,2]
[348440287,1736529047235,-612.34,0.00010104,2]
[348440289,1736529047245,-500.0,0.00010104,2]
[348440292,1736529047255,-500.0,0.00010104,2]
[348440294,1736529047266,-500.0,0.00010105,2]
[348440296,1736529047277,-500.0,0.00010105,2]
[348440297,1736529047287,-500.0,0.00010105,2]
[348440299,1736529047297,-500.0,0.00010105,2]
[348440301,1736529047307,-500.0,0.00010105,2]
[348440304,1736529047317,-500.0,0.00010105,2]
[348440306,1736529047327,-500.0,0.00010105,2]
[348440308,1736529047338,-500.0,0.00010105,2]
[348440310,1736529047347,-500.0,0.00010105,2]
[348440312,1736529047356,-500.0,0.00010105,2]
[348440314,1736529047366,-500.0,0.00010105,2]
[348440316,1736529047375,-500.0,0.00010105,2]
[348440318,1736529047385,-840.66,0.00010105,2]
[348440320,1736529047395,-500.0,0.00010105,2]
[348440322,1736529047404,-580.36,0.00010105,2]
[348440324,1736529047414,-500.0,0.00010105,2]
[348440326,1736529047423,-500.0,0.00010105,2]
[348440328,1736529047433,-1235.93,0.00010105,2]
[348440330,1736529047443,-500.0,0.00010105,2]
[348440332,1736529047453,-637.63,0.00010105,2]
[348440334,1736529047462,-456.13881441,0.00010105,2]
[348440336,1736529047471,-500.0,0.00010105,2]
[348440338,1736529047481,-504.1,0.00010105,2]
[348440340,1736529047491,-500.0,0.00010105,2]
[348440342,1736529047501,-500.0,0.00010105,2]
[348440344,1736529047511,-189.33468808,0.00010105,2]
[348440346,1736529047520,-548.25,0.00010105,2]
[348440348,1736529047530,-844.2,0.00010105,2]
[348440350,1736529047541,-500.0,0.00010105,2]
[348440352,1736529047551,-500.0,0.00010105,2]
[348440354,1736529047561,-1626.16,0.00010105,2]
[348440356,1736529047571,-500.0,0.00010105,2]
[348440358,1736529047581,-500.0,0.00010105,2]
[348440360,1736529047593,-2642.63,0.00010105,2]
[348440363,1736529047609,-500.0,0.00010105,2]
[348440365,1736529047619,-1094.21,0.00010105,2]
[348440367,1736529047629,-500.0,0.00010105,2]
[348440369,1736529047639,-500.0,0.00010105,2]
[348440371,1736529047650,-500.0,0.00010105,2]
[348440373,1736529047660,-500.0,0.00010105,2]
[348440375,1736529047670,-519.16,0.00010105,2]
[348440377,1736529047681,-500.0,0.00010105,2]
[348440379,1736529047691,-500.0,0.00010105,2]
[348440381,1736529047701,-511.86,0.00010105,2]
[348440383,1736529047711,-500.0,0.00010105,2]
[348440385,1736529047721,-905.8,0.00010105,2]
[348440388,1736529047731,-500.0,0.00010105,2]
[348440390,1736529047741,-500.0,0.00010105,2]
[348440392,1736529047752,-500.0,0.00010105,2]
[348440394,1736529047762,-500.0,0.00010105,2]
[348440396,1736529047771,-1128.79,0.00010105,2]
[348440398,1736529047781,-500.0,0.00010105,2]
[348440400,1736529047791,-816.09,0.00010105,2]
[348440402,1736529047801,-657.593393,0.00010105,2]
[348440404,1736529047811,-527.18,0.00010105,2]
[348440406,1736529047821,-585.55,0.00010105,2]
[348440408,1736529047830,-500.0,0.00010105,2]
[348440410,1736529047841,-590.08,0.00010105,2]
[348440412,1736529047851,-513.46,0.00010105,2]
[348440414,1736529047861,-500.0,0.00010105,2]
[348440416,1736529047871,-1614.86,0.00010105,2]
[348440418,1736529047882,-500.0,0.00010105,2]
[348440420,1736529047892,-865.3,0.00010105,2]
[348440422,1736529047903,-504.09,0.00010105,2]
[348440424,1736529047913,-706.88085,0.00010105,2]
[348440426,1736529047922,-500.0,0.00010105,2]
[348440428,1736529047934,-2019.24,0.00010105,2]
[348440430,1736529047944,-945.46,0.00010105,2]
[348440432,1736529047954,-500.0,0.00010105,2]
[348440434,1736529047964,-3929.15,0.00010105,2]
[348440436,1736529047974,-517.02,0.00010105,2]
[348440438,1736529047984,-500.0,0.00010105,2]
[348440440,1736529047995,-1443.88,0.00010105,2]
[348440442,1736529048006,-509.92,0.00010105,2]
[348440444,1736529048016,-500.0,0.00010105,2]
[348440446,1736529048027,-1256.77,0.00010105,2]
[348440448,1736529048037,-798.34,0.00010105,2]
[348440450,1736529048048,-500.0,0.00010105,2]
[348440452,1736529048059,-500.0,0.00010105,2]
[348440454,1736529048069,-2838.98,0.00010105,2]
[348440456,1736529048080,-500.0,0.00010105,2]
[348440458,1736529048090,-743.53,0.00010105,2]
[348440460,1736529048102,-500.0,0.00010105,2]
[348440463,1736529048117,-2474.33,0.00010105,2]
[348440494,1736529048413,-1001.91,0.00010105,2]
[348440496,1736529048425,-618.16,0.00010105,2]
[348440498,1736529048436,-608.56,0.00010105,2]
[348440500,1736529048446,-1943.91,0.00010105,2]
[348440502,1736529048456,-500.0,0.00010105,2]
[348440504,1736529048465,-636.7,0.00010105,2]
[348440506,1736529048475,-500.0,0.00010105,2]
[348440508,1736529048485,-817.92,0.00010105,2]
[348440510,1736529048495,-500.0,0.00010105,2]
[348440512,1736529048504,-500.0,0.00010105,2]
[348440514,1736529048514,-2307.64,0.00010105,2]
[348440516,1736529048524,-590.42,0.00010105,2]
[348440519,1736529048538,-672.59,0.00010105,2]
[348440521,1736529048548,-2782.54,0.00010105,2]
[348440523,1736529048559,-500.0,0.00010105,2]
[348440524,1736529048569,-502.94,0.00010105,2]
[348440525,1736529048578,-500.0,0.00010105,2]
[348440526,1736529048588,-500.0,0.00010105,2]
[348440527,1736529048598,-500.79,0.00010105,2]
[348440528,1736529048608,-657.28,0.00010105,2]
[348440529,1736529048618,-500.0,0.00010105,2]
[348440530,1736529048627,-500.0,0.00010105,2]
[348440531,1736529048638,-500.0,0.00010106,2]
[348440532,1736529048647,-500.0,0.00010106,2]
[348440533,1736529048657,-500.0,0.00010106,2]
[348440534,1736529048666,-1602.12,0.00010106,2]
[348440535,1736529048676,-1260.15,0.00010106,2]
[348440536,1736529048688,-2367.34,0.00010106,2]
[348440537,1736529048698,-1130.18,0.00010106,2]
[348440538,1736529048708,-2278.99,0.00010106,2]
[348440539,1736529048718,-1035.37,0.00010106,2]
[348440540,1736529048728,-693.42,0.00010106,2]
[348440541,1736529048738,-897.93,0.00010106,2]
[348440542,1736529048748,-671.22,0.0001011,2]
[348440543,1736529048759,-500.0,0.00010118,2]
[348440544,1736529048769,-500.0,0.00010118,2]
[348440545,1736529048779,-500.0,0.00010118,2]
[348440546,1736529048790,-500.0,0.00010118,2]
[348440547,1736529048800,-500.0,0.00010118,2]
[348440548,1736529048810,-542.72,0.00010118,2]
[348440549,1736529048820,-500.0,0.00010118,2]
[348440550,1736529048830,-500.0,0.00010118,2]
[348440551,1736529048840,-498.12309458,0.00010118,2]
[348440553,1736529048850,-500.0,0.00010118,2]
[348440555,1736529048859,-500.0,0.00010118,2]
[348440557,1736529048869,-500.0,0.00010118,2]
[348440559,1736529048879,-500.0,0.00010118,2]
[348440561,1736529048889,-500.0,0.00010118,2]
[348440563,1736529048899,-500.0,0.00010118,2]
[348440565,1736529048909,-500.0,0.00010118,2]
[348440567,1736529048918,-500.0,0.00010118,2]
[348440569,1736529048928,-500.0,0.00010118,2]
[348440571,1736529048940,-500.0,0.00010118,2]
[348440573,1736529048950,-513.08,0.00010118,2]
[348440575,1736529048960,-676.81,0.00010118,2]
[348440577,1736529048970,-500.0,0.00010118,2]
[348440579,1736529048980,-500.0,0.00010118,2]
[348440581,1736529048991,-500.0,0.00010118,2]
[348440583,1736529049002,-500.0,0.00010118,2]
[348440585,1736529049012,-500.0,0.00010118,2]
[348440587,1736529049022,-500.0,0.00010118,2]
[348440588,1736529049032,-500.0,0.00010118,2]
[348440589,1736529049055,-500.0,0.00010118,2]
[348440590,1736529049066,-500.0,0.00010118,2]
[348440591,1736529049078,-500.54,0.00010118,2]
[348440592,1736529049089,-500.0,0.00010118,2]
[348440593,1736529049100,-500.0,0.00010118,2]
[348440594,1736529049111,-500.0,0.00010118,2]
[348440595,1736529049122,-500.0,0.00010118,2]
[348440596,1736529049133,-500.0,0.00010118,2]
[348440597,1736529049146,-627.7,0.00010118,2]
[348440598,1736529049157,-500.0,0.00010118,2]
[348440599,1736529049167,-603.45,0.00010118,2]
[348440600,1736529049178,-559.88,0.00010118,2]
[348440601,1736529049189,-500.0,0.00010118,2]
[348440602,1736529049199,-500.0,0.00010118,2]
[348440603,1736529049210,-908.21,0.00010118,2]
[348440604,1736529049220,-647.27,0.00010118,2]
[348440605,1736529049230,-500.0,0.00010118,2]
[348440606,1736529049242,-1194.61,0.00010118,2]
[348440607,1736529049252,-500.0,0.00010118,2]
[348440608,1736529049265,-754.39,0.00010118,2]
[348440609,1736529049277,-349.79,0.00010137,2]
[348440610,1736529049288,-2015.0,0.0001015,2]
[348440611,1736529049299,-1267.0,0.0001015,2]
[348440612,1736529049310,-635.0,0.0001015,2]
[348440613,1736529049321,-150.0,0.0001015,2]
[348440614,1736529049331,-566.0,0.0001015,2]
[348440615,1736529049342,-1861.0,0.0001015,2]
[348440616,1736529049352,-818.0,0.0001015,2]
[348440617,1736529049363,-2944.0,0.00010163,2]
[348440618,1736529049373,-536.339,0.00010163,2]
[348440619,1736529049383,-537.0,0.00010163,2]
[348440620,1736529049393,-3975.0,0.00010163,2]
[348440621,1736529049403,-150.0,0.00010167,2]
[348440622,1736529049414,-3896.0,0.00010167,2]
[348440623,1736529049424,-1173.0,0.00010167,2]
[348440624,1736529049435,-1104.0,0.00010167,2]
[348440625,1736529049445,-389.30106978,0.00010183,2]
[348440626,1736529049456,-210.46368128,0.000102,2]
[348440627,1736529049467,-500.0,0.00010214,2]
[348440628,1736529049478,-500.0,0.00010215,2]
[348440629,1736529049488,-597.96,0.00010215,2]
[348440630,1736529049499,-500.0,0.00010216,2]
[348440631,1736529049509,-500.0,0.00010216,2]
[348440632,1736529049519,-500.0,0.00010216,2]
[348440633,1736529049529,-500.0,0.00010216,2]
[348440634,1736529049545,-500.0,0.00010216,2]
[348440635,1736529049557,-539.57,0.00010219,2]
[348440636,1736529049567,-500.0,0.00010219,2]
[348440637,1736529049579,-692.81,0.00010219,2]
[348440638,1736529049590,-500.0,0.00010219,2]
[348440639,1736529049602,-500.0,0.00010219,2]
[348440640,1736529049615,-1219.14,0.00010219,2]
[348440641,1736529049626,-1051.43,0.00010219,2]
[348440642,1736529049637,-915.43,0.00010219,2]
[348440643,1736529049650,-1773.45,0.00010219,2]
[348440644,1736529049663,-3250.68,0.00010219,2]
[348440645,1736529049674,-540.89,0.00010219,2]
[348440646,1736529049687,-500.0,0.00010219,2]
[348440647,1736529049698,-500.0,0.00010219,2]
[348440648,1736529049708,-1025.56,0.00010219,2]
[348440649,1736529049719,-500.0,0.00010219,2]
[348440650,1736529049729,-500.0,0.00010219,2]
[348440651,1736529049739,-967.39,0.00010219,2]
[348440652,1736529049750,-635.21,0.00010219,2]
[348440653,1736529049761,-812.79,0.00010219,2]
[348440654,1736529049772,-550.45,0.00010219,2]
[348440655,1736529049783,-1000.0,0.00010219,2]
[348440656,1736529049794,-657.85,0.00010219,2]
[348440657,1736529049805,-500.0,0.00010219,2]
[348440658,1736529049815,-500.0,0.00010279,2]
[348440659,1736529049825,-437.86,0.00010289,2]
[348440660,1736529049835,-772.07,0.00010289,2]
[348440661,1736529049847,-772.07,0.00010289,2]
[348440662,1736529049857,-437.86,0.00010289,2]
[348440663,1736529049867,-772.07,0.00010289,2]
[348440664,1736529049877,-437.86,0.00010289,2]
[348440665,1736529049889,-389.30106978,0.00010326,2]
[348440666,1736529049900,-869.1,0.00010378,2]
[348440667,1736529049912,-500.0,0.00010378,2]
[348440668,1736529049922,-1464.21,0.00010378,2]
[348440669,1736529049932,-582.34,0.00010378,2]
[348440670,1736529049942,-1024.71,0.00010378,2]
[348440671,1736529049952,-1511.09,0.00010378,2]
[348440672,1736529049964,-1993.58,0.00010378,2]
[348440673,1736529049976,-1204.52,0.00010378,2]
[348440674,1736529049986,-763.82,0.00010378,2]
[348440675,1736529049997,-2234.93,0.00010378,2]
[348440676,1736529050007,-701.76,0.00010378,2]
[348440677,1736529050018,-550.99,0.00010378,2]
[348440678,1736529050029,-1753.49,0.00010378,2]
[348440679,1736529050045,-566.03,0.00010378,2]
[348440680,1736529050056,-500.0,0.00010378,2]
[348440681,1736529050067,-982.83,0.00010378,2]
[348440682,1736529050078,-612.34,0.00010378,2]
[348440683,1736529050088,-500.0,0.00010378,2]
[348440684,1736529050099,-500.0,0.00010378,2]
[348440685,1736529050109,-500.0,0.00010379,2]
[348440686,1736529050121,-500.0,0.00010379,2]
[348440687,1736529050131,-500.0,0.00010379,2]
[348440688,1736529050142,-500.0,0.00010379,2]
[348440689,1736529050153,-500.0,0.00010379,2]
[348440690,1736529050164,-500.0,0.00010379,2]
[348440691,1736529050174,-500.0,0.00010379,2]
[348440692,1736529050186,-500.0,0.00010379,2]
[348440693,1736529050196,-500.0,0.00010379,2]
[348440694,1736529050206,-500.0,0.00010379,2]
[348440695,1736529050217,-500.0,0.00010379,2]
[348440696,1736529050226,-840.66,0.00010379,2]
[348440697,1736529050237,-500.0,0.00010379,2]
[348440698,1736529050247,-580.36,0.00010379,2]
[348440699,1736529050257,-500.0,0.00010379,2]
[348440700,1736529050273,-500.0,0.00010379,2]
[348440701,1736529050283,-1235.93,0.00010379,2]
[348440702,1736529050293,-500.0,0.00010379,2]
[348440703,1736529050303,-637.63,0.00010379,2]
[348440704,1736529050315,-500.0,0.00010379,2]
[348440705,1736529050327,-504.1,0.00010379,2]
[348440706,1736529050339,-500.0,0.00010379,2]
[348440707,1736529050352,-500.0,0.00010379,2]
[348440708,1736529050363,-548.25,0.00010379,2]
[348440709,1736529050373,-844.2,0.00010379,2]
[348440710,1736529050384,-500.0,0.00010379,2]
[348440711,1736529050394,-500.0,0.00010379,2]
[348440712,1736529050405,-1626.16,0.00010379,2]
[348440713,1736529050415,-500.0,0.00010379,2]
[348440714,1736529050426,-500.0,0.00010379,2]
[348440715,1736529050438,-2642.63,0.00010379,2]
[348440716,1736529050448,-500.0,0.00010379,2]
[348440717,1736529050459,-1094.21,0.00010379,2]
[348440718,1736529050470,-500.0,0.00010379,2]
[348440719,1736529050480,-500.0,0.00010379,2]
[348440720,1736529050492,-500.0,0.00010379,2]
[348440721,1736529050502,-500.0,0.00010379,2]
[348440722,1736529050513,-519.16,0.00010379,2]
[348440723,1736529050524,-500.0,0.00010379,2]
[348440724,1736529050534,-500.0,0.00010379,2]
[348440725,1736529050545,-511.86,0.00010379,2]
[348440726,1736529050556,-500.0,0.00010379,2]
[348440727,1736529050566,-905.8,0.00010379,2]
[348440728,1736529050578,-500.0,0.00010379,2]
[348440729,1736529050588,-500.0,0.00010379,2]
[348440730,1736529050600,-500.0,0.00010379,2]
[348440731,1736529050611,-467.23285426,0.00010379,2]
[348440732,1736529050623,-1128.79,0.00010379,2]
[348440733,1736529050634,-500.0,0.00010379,2]
[348440734,1736529050644,-816.09,0.00010379,2]
[348440735,1736529050654,-657.593393,0.00010379,2]
[348440736,1736529050665,-527.18,0.00010379,2]
[348440737,1736529050675,-585.55,0.00010379,2]
[348440738,1736529050686,-500.0,0.00010379,2]
[348440739,1736529050695,-590.08,0.00010379,2]
[348440740,1736529050705,-513.46,0.00010379,2]
[348440741,1736529050716,-500.0,0.00010379,2]
[348440742,1736529050726,-1614.86,0.00010379,2]
[348440743,1736529050736,-500.0,0.00010379,2]
[348440744,1736529050746,-865.3,0.00010379,2]
[348440745,1736529050757,-504.09,0.00010379,2]
[348440746,1736529050767,-706.88085,0.00010379,2]
[348440747,1736529050778,-500.0,0.00010379,2]
[348440748,1736529050788,-2019.24,0.00010379,2]
[348440749,1736529050798,-945.46,0.00010379,2]
[348440750,1736529050809,-500.0,0.00010379,2]
[348440751,1736529050819,-3929.15,0.00010379,2]
[348440752,1736529050829,-168.193476,0.00010379,2]
[348440753,1736529050839,-517.02,0.00010379,2]
[348440754,1736529050850,-500.0,0.00010379,2]
[348440755,1736529050860,-1443.88,0.00010379,2]
[348440756,1736529050871,-509.92,0.00010379,2]
[348440757,1736529050881,-500.0,0.00010379,2]
[348440758,1736529050891,-1256.77,0.00010379,2]
[348440759,1736529050904,-798.34,0.00010379,2]
[348440760,1736529050914,-500.0,0.00010379,2]
[348440761,1736529050924,-500.0,0.00010379,2]
[348440762,1736529050935,-2838.98,0.00010379,2]
[348440763,1736529050945,-500.0,0.00010379,2]
[348440764,1736529050954,-743.53,0.00010379,2]
[348440765,1736529050964,-500.0,0.00010379,2]
[348440766,1736529050974,-2474.33,0.00010379,2]
[348440767,1736529050984,-1001.91,0.00010379,2]
[348440768,1736529050993,-618.16,0.00010379,2]
[348440769,1736529051109,-608.56,0.00010379,2]
[348440770,1736529051119,-1943.91,0.00010379,2]
[348440771,1736529051130,-500.0,0.00010379,2]
[348440772,1736529051140,-636.7,0.00010379,2]
[348440773,1736529051150,-500.0,0.00010379,2]
[348440774,1736529051160,-817.92,0.00010379,2]
[348440775,1736529051169,-500.0,0.00010379,2]
[348440776,1736529051178,-500.0,0.00010379,2]
[348440777,1736529051188,-2307.64,0.00010379,2]
[348440778,1736529051197,-590.42,0.00010379,2]
[348440779,1736529051207,-672.59,0.00010379,2]
[348440780,1736529051216,-2782.54,0.00010379,2]
[348440781,1736529051226,-500.0,0.00010379,2]
[348440782,1736529051235,-502.94,0.00010379,2]
[348440783,1736529051245,-500.0,0.00010379,2]
[348440784,1736529051254,-500.79,0.00010379,2]
[348440785,1736529051265,-657.28,0.00010379,2]
[348440786,1736529051276,-500.0,0.00010379,2]
[348440787,1736529051285,-500.0,0.00010379,2]
[348440788,1736529051294,-500.0,0.0001038,2]
[348440789,1736529051303,-500.0,0.0001038,2]
[348440790,1736529051313,-500.0,0.0001038,2]
[348440791,1736529051323,-1602.12,0.0001038,2]
[348440792,1736529051332,-1260.15,0.0001038,2]
[348440793,1736529051343,-2367.34,0.0001038,2]
[348440794,1736529051354,-1130.18,0.0001038,2]
[348440795,1736529051363,-2278.99,0.0001038,2]
[348440796,1736529051372,-1035.37,0.0001038,2]
[348440797,1736529051381,-693.42,0.0001038,2]
[348440798,1736529051390,-897.93,0.0001038,2]
[348440799,1736529051399,-671.22,0.00010384,2]
[348440800,1736529051409,-781.56,0.00010389,2]
[348440801,1736529051419,-568.64972122,0.00010392,2]
[348440802,1736529051429,-500.0,0.00010392,2]
[348440803,1736529051441,-500.0,0.00010392,2]
[348440804,1736529051450,-500.0,0.00010392,2]
[348440805,1736529051460,-500.0,0.00010392,2]
[348440806,1736529051470,-542.72,0.00010392,2]
[348440807,1736529051479,-500.0,0.00010392,2]
[348440808,1736529051488,-500.0,0.00010392,2]
[348440809,1736529051498,-500.0,0.00010392,2]
[348440810,1736529051508,-500.0,0.00010392,2]
[348440811,1736529051517,-500.0,0.00010392,2]
[348440812,1736529051526,-500.0,0.00010392,2]
[348440813,1736529051536,-500.0,0.00010392,2]
[348440814,1736529051545,-500.0,0.00010392,2]
[348440815,1736529051554,-500.0,0.00010392,2]
[348440816,1736529051564,-500.0,0.00010392,2]
[348440817,1736529051574,-500.0,0.00010392,2]
[348440818,1736529051583,-166.73794243,0.00010392,2]
[348440819,1736529051593,-500.0,0.00010392,2]
[348440820,1736529051602,-513.08,0.00010392,2]
[348440821,1736529051612,-676.81,0.00010392,2]
[348440822,1736529051622,-500.0,0.00010392,2]
[348440823,1736529051632,-563.54897268,0.00010392,2]
[348440824,1736529051641,-500.0,0.00010392,2]
[348440825,1736529051652,-500.0,0.00010392,2]
[348440826,1736529051661,-500.0,0.00010392,2]
[348440827,1736529051673,-500.0,0.00010392,2]
[348440828,1736529051682,-500.0,0.00010392,2]
[348440829,1736529051694,-500.0,0.00010392,2]
[348440830,1736529051703,-500.0,0.00010392,2]
[348440831,1736529051713,-500.54,0.00010392,2]
[348440832,1736529051722,-500.0,0.00010392,2]
[348440833,1736529051732,-500.0,0.00010392,2]
[348440834,1736529051741,-500.0,0.00010392,2]
[348440835,1736529051751,-500.0,0.00010392,2]
[348440836,1736529051760,-500.0,0.00010392,2]
[348440837,1736529051769,-603.45,0.00010392,2]
[348440838,1736529051779,-559.88,0.00010392,2]
[348440839,1736529051789,-500.0,0.00010392,2]
[348440840,1736529051798,-500.0,0.00010392,2]
[348440841,1736529051808,-908.21,0.00010392,2]
[348440842,1736529051817,-647.27,0.00010392,2]
[348440843,1736529051828,-500.0,0.00010392,2]
[348440844,1736529051838,-1194.61,0.00010392,2]
[348440845,1736529051849,-500.0,0.00010392,2]
[348440846,1736529051859,-754.39,0.00010392,2]
[348440847,1736529051869,-5431.30117005,0.00010416,2]
[348440848,1736529051879,-389.30106978,0.00010469,2]
[348440849,1736529051889,-500.0,0.00010489,2]
[348440850,1736529051900,-597.96,0.00010489,2]
[348440851,1736529051911,-500.0,0.0001049,2]
[348440852,1736529051922,-500.0,0.0001049,2]
[348440853,1736529051931,-500.0,0.0001049,2]
[348440854,1736529051942,-500.0,0.0001049,2]
[348440855,1736529051952,-500.0,0.0001049,2]
[348440856,1736529051962,-500.0,0.00010492,2]
[348440857,1736529051972,-539.57,0.00010493,2]
[348440858,1736529051981,-500.0,0.00010493,2]
[348440859,1736529051991,-692.81,0.00010493,2]
[348440860,1736529052000,-500.0,0.00010493,2]
[348440861,1736529052010,-500.0,0.00010493,2]
[348440862,1736529052020,-1219.14,0.00010493,2]
[348440863,1736529052030,-1051.43,0.00010493,2]
[348440864,1736529052040,-915.43,0.00010493,2]
[348440865,1736529052050,-1773.45,0.00010493,2]
[348440866,1736529052059,-3250.68,0.00010493,2]
[348440867,1736529052069,-540.89,0.00010493,2]
[348440868,1736529052078,-500.0,0.00010493,2]
[348440869,1736529052088,-500.0,0.00010493,2]
[348440870,1736529052097,-1025.56,0.00010493,2]
[348440871,1736529052107,-500.0,0.00010493,2]